Workbook

Sheet Face Page (hidden)
A1: Form Approved Through 6/30/2016 | O1: OMB No. 0925-0001
A2: Department of Health and Human Services | H2: LEAVE BLANK—FOR PHS USE ONLY.
A3: Public Health Services | H3: Type | I3: Activity | L3: Number
H4: Review Group | L4: Formerly
A5: Do not exceed character length restrictions indicated. | H5: Council/Board (Month, Year) | L5: Date Received
A7: 1. TITLE OF PROJECT (Do not exceed 81 characters, including spaces and punctuation.)
A9: 2. RESPONSE TO SPECIFIC REQUEST FOR APPLICATIONS OR PROGRAM ANNOUNCEMENT OR SOLICITATION | N9: NO | O9: YES
A10: (If "Yes," state number and title)
A11: Number: | D11: Title:
A12: 3. PROGRAM DIRECTOR/PRINCIPAL INVESTIGATOR
A13: 3a. NAME (Last, first, middle) | H13: 3b. DEGREE(S) | K13: 3h. | L13: eRA Commons User Name
A15: 3c. POSITION TITLE | H15: 3d. MAILING ADDRESS (Street, city, state, zip code)
A17: 3e. DEPARTMENT, SERVICE, LABORATORY, OR EQUIVALENT
A19: 3f. MAJOR SUBDIVISION | I19: Ames, IA 50011-xxxx
A21: 3g. TELEPHONE AND FAX (Area code, number and extension) | H21: E-MAIL ADDRESS:
A22: TEL: | B22: (515) 294-xxxx | E22: FAX: | G22: (515) 294-xxxx
A23: 4. HUMAN SUBJECTS RESEARCH | F23: 4a. Research Exempt | H23: If "Yes," Exemption No.
A24: No | B24: Yes | F24: No Yes
A25: 4b. Federal-Wide Assurance No. | F25: 4c. Clinical Trial | J25: 4d. NIH-defined Phase III Clinical Trial
F26: No Yes | J26: No | L26: Yes
A27: 5. VERTEBRATE ANIMALS | D27: No | E27: Yes | H27: 5a. Animal Welfare Assurance No.
A28: 6. DATES OF PROPOSED PERIOD OF | G28: 7. COSTS REQUESTED FOR INITIAL | J28: 8. COSTS REQUESTED FOR PROPOSED
A29: SUPPORT (month, day, year--MM/DD/YY) | G29: BUDGET PERIOD | J29: PERIOD OF SUPPORT
A30: From | C30: Through | G30: 7a. Direct Costs ($) | H30: 7b. Total Costs ($) | J30: 8a. Direct Costs ($) | N30: 8b. Total Costs ($)
G31: ='Base Budget'!L173+'Base Budget'!L194 -> 0 | H31: ='Base Budget'!$L$202 -> 0 | J31: ='Base Budget'!V173+'Base Budget'!V194 -> 0 | N31: ='Base Budget'!$E$209 -> 0
A32: 9. APPLICANT ORGANIZATION | H32: 10. TYPE OF ORGANIZATION
A33: Name | B33: Iowa State University of Science and Technology | H33: Public: | J33: Federal | L33: State | N33: Local
A34: Address | B34: Office of Sponsored Programs Administration | H34: Private: | J34: Private Nonprofit
B35: 1138 Pearson | H35: For-profit: | J35: General | L35: Small Business
B36: Ames, IA 50011-2207 | H36: Woman-owned | J36: Socially and Economically Disadvantaged
H37: 11. ENTITY IDENTIFICATION NUMBER
H38: 426004224
H39: DUNS NO | J39: 005309844 | L39: Cong. District | O39: IA-004
A40: 12. ADMINISTRATIVE OFFICIAL TO BE NOTIFIED IF AWARD IS MADE | H40: 13. OFFICIAL SIGNING FOR APPLICANT ORGANIZATION
A41: Name | B41: Rebecca Musselman | H41: Name | I41: Andrea Rich
A42: Title | B42: Director, OSPA | H42: Title | I42: Manager, Pre-Award Services
A43: Address | B43: Iowa State University of Science and Technology | H43: Address | I43: Iowa State University of Science and Technology
B44: Office of Sponsored Programs Administration | I44: Office of Sponsored Programs Administration
B45: 1138 Pearson | I45: 1138 Pearson
B46: Ames, IA 50011-2207 | I46: Ames, IA 50011-2207
A47: Tel: | B47: 515-294-5225 | F47: FAX: | G47: 515-294-8000 | H47: Tel: | I47: 515-294-5225 | M47: FAX: | N47: 515-294-8000
A48: E-Mail: | B48: grants@iastate.edu | H48: E-Mail: | I48: grants@iastate.edu
H49: SIGNATURE OF OFFICIAL NAMED IN 13. | O49: DATE
H50: (In ink. "Per" signature not acceptable.)
A53: PHS 398 (Rev. 6/09) | G53: Face Page | O53: Form Page 1

Sheet Base Budget
C1: NIH Modular Grant Worksheet, 1 - 5 Years
AD2: Eff 7/1/2016
C3: Iowa State University | AD3: Updated 9/21/2016
C5: Indirect Cost Categories:
C6: 0.5 | E6: On-Campus Organized Research
C7: 0.51 | E7: On Campus Instruction
C8: 0.32 | E8: On-Campus Other Sponsored Activities
C9: 0.26 | E9: Off-Campus All Programs
C12: Increment Rate (Non-Personnel) | G12: 0
C13: Increment Rate (Personnel) | G13: 0
C14: Faculty Benefits | G14: 0.275
C15: P&S Benefits | G15: 0.345
C16: Merit Benefits | G16: 0.458
C17: Post Doc | G17: 0.329
C18: Undergraduate | G18: 0.006
C19: Graduate Assistants (per year) | G19: 0.098 | L19: Note: A module is any multiple of $25,000 up to, and including $250,000.
C20: F&A (Indirect) Rate | G20: 0.5 | L20: 1 | N20: << Number of Years for Project
G27: NIH Salary Cap policy @ http://grants.nih.gov/grants/guide/notice-files/NOT-OD-12-035.html
C28: Personnel
E30: Faculty: Enter Either Summer (SM) Academic (AY) or Calendar (CM) Months
A31: Months: Either SM/AY or CM | C31: Faculty
C32: Name | E32: SM | F32: AY | G32: CM | I32: Monthly Salary | K32: Year 1 | L32: Year 1 | N32: Year 2 | P32: Year 3 | R32: Year 4 | T32: Year 5
A33: =IF(B33=1,A32+1,0) -> 0 | B33: =IF(G33=0,0,1) -> 0 | C33: PI name | E33: 0 | F33: 0 | G33: 0 | I33: 0 | K33: =#REF!*H33 ->  | L33: 0 | N33: =IF(term>1,ROUND(SUM(L33+(L33*$G$13)),0),0) -> 0 | P33: =IF(term>2,ROUND(SUM(N33+(N33*$G$13)),0),0) -> 0 | R33: =IF(term>3,ROUND(SUM(P33+(P33*$G$13)),0),0) -> 0 | T33: =IF(term>4,ROUND(SUM(R33+(R33*$G$13)),0),0) -> 0
A34: =IF(B34=1,SUM(A33:A33)+1,0) -> 0 | B34: =IF(G34=0,0,1) -> 0 | E34: 0 | F34: 0 | G34: 0 | I34: 0 | K34: =#REF!*H34 ->  | L34: =ROUND(E34*I34+F34*I34+G34*I34,0) -> 0 | N34: 0 | P34: 0 | R34: 0 | T34: =IF(term>4,ROUND(SUM(R34+(R34*$G$13)),0),0) -> 0
A35: =IF(B35=1,SUM(B33:B34)+1,0) -> 0 | B35: =IF(G35=0,0,1) -> 0 | E35: 0 | F35: 0 | G35: 0 | I35: 0 | K35: =#REF!*H35 ->  | L35: 0 | N35: 0 | P35: 0 | R35: 0 | T35: 0
A36: =IF(B36=1,SUM(B33:B35)+1,0) -> 0 | B36: =IF(G36=0,0,1) -> 0 | E36: 0 | F36: 0 | G36: 0 | I36: 0 | K36: =#REF!*H36 ->  | L36: 0 | N36: 0 | P36: 0 | R36: 0 | T36: 0
E37: 0 | F37: 0 | G37: 0 | I37: 0 | K37: =#REF!*H37 ->  | L37: 0 | N37: 0 | P37: 0 | R37: 0 | T37: 0
A38: =IF(B38=1,SUM(B33:B36)+1,0) -> 0 | B38: =IF(G38=0,0,1) -> 0 | E38: 0 | F38: 0 | G38: 0 | I38: 0 | K38: =#REF!*H38 ->  | L38: 0 | N38: 0 | P38: 0 | R38: 0 | T38: 0
C39: Subtotals | K39: =SUM(K33:K38) ->  | L39: =SUM(L33:L38) -> 0 | N39: =SUM(N33:N38) -> 0 | P39: =SUM(P33:P38) -> 0 | R39: =SUM(R33:R38) -> 0 | T39: =SUM(T33:T38) -> 0
C41: Professional & Scientific
C42: Name | G42: Cal Mo | I42: Monthly Salary | L42: Year 1 | N42: Year 2 | P42: Year 3 | R42: Year 4 | T42: Year 5
A43: =IF(B43=1,SUM(B33:B38)+1,0) -> 0 | B43: =IF(G43=0,0,1) -> 0 | G43: 0 | I43: 0 | K43: =+L43*Professional -> 0 | L43: =ROUND(G43*I43,0) -> 0 | N43: =IF(term>1,ROUND(SUM(L43+(L43*$G$13)),0),0) -> 0 | P43: =IF(term>2,ROUND(SUM(N43+(N43*$G$13)),0),0) -> 0 | R43: =IF(term>3,ROUND(SUM(P43+(P43*$G$13)),0),0) -> 0 | T43: =IF(term>4,ROUND(SUM(R43+(R43*$G$13)),0),0) -> 0
A44: =IF(B44=1,SUM(B33:B43)+1,0) -> 0 | B44: =IF(G44=0,0,1) -> 0 | G44: 0 | I44: 0 | K44: =+L44*Professional -> 0 | L44: =ROUND(G44*I44,0) -> 0 | N44: =IF(term>1,ROUND(SUM(L44+(L44*$G$13)),0),0) -> 0 | P44: =IF(term>2,ROUND(SUM(N44+(N44*$G$13)),0),0) -> 0 | R44: =IF(term>3,ROUND(SUM(P44+(P44*$G$13)),0),0) -> 0 | T44: =IF(term>4,ROUND(SUM(R44+(R44*$G$13)),0),0) -> 0
A45: =IF(B45=1,SUM(B33:B44)+1,0) -> 0 | B45: =IF(G45=0,0,1) -> 0 | G45: 0 | I45: 0 | K45: =+L45*Professional -> 0 | L45: 0 | N45: =IF(term>1,ROUND(SUM(L45+(L45*$G$13)),0),0) -> 0 | P45: =IF(term>2,ROUND(SUM(N45+(N45*$G$13)),0),0) -> 0 | R45: =IF(term>3,ROUND(SUM(P45+(P45*$G$13)),0),0) -> 0 | T45: =IF(term>4,ROUND(SUM(R45+(R45*$G$13)),0),0) -> 0
A46: =IF(B46=1,SUM(B33:B45)+1,0) -> 0 | B46: =IF(G46=0,0,1) -> 0 | G46: 0 | I46: 0 | K46: =+L46*Professional -> 0 | L46: 0 | N46: =IF(term>1,ROUND(SUM(L46+(L46*$G$13)),0),0) -> 0 | P46: =IF(term>2,ROUND(SUM(N46+(N46*$G$13)),0),0) -> 0 | R46: =IF(term>3,ROUND(SUM(P46+(P46*$G$13)),0),0) -> 0 | T46: =IF(term>4,ROUND(SUM(R46+(R46*$G$13)),0),0) -> 0
A47: =IF(B47=1,SUM(B33:B46)+1,0) -> 0 | B47: =IF(G47=0,0,1) -> 0 | G47: 0 | I47: 0 | K47: =+L47*Professional -> 0 | L47: 0 | N47: =IF(term>1,ROUND(SUM(L47+(L47*$G$13)),0),0) -> 0 | P47: =IF(term>2,ROUND(SUM(N47+(N47*$G$13)),0),0) -> 0 | R47: =IF(term>3,ROUND(SUM(P47+(P47*$G$13)),0),0) -> 0 | T47: =IF(term>4,ROUND(SUM(R47+(R47*$G$13)),0),0) -> 0
C48: Subtotals | L48: =SUM(L43:L47) -> 0 | N48: =SUM(N43:N47) -> 0 | P48: =SUM(P43:P47) -> 0 | R48: =SUM(R43:R47) -> 0 | T48: =SUM(T43:T47) -> 0
C51: Merit
C52: Name | G52: Cal Mo | I52: Monthly Salary | L52: Year 1 | N52: Year 2 | P52: Year 3 | R52: Year 4 | T52: Year 5
A53: =IF(B53=1,SUM($B$33:B52)+1,0) -> 0 | B53: =IF(G53=0,0,1) -> 0 | G53: 0 | I53: 0 | K53: =+L53*Merit -> 0 | L53: =ROUND(G53*I53,0) -> 0 | N53: =IF(term>1,ROUND(SUM(L53+(L53*$G$13)),0),0) -> 0 | P53: =IF(term>2,ROUND(SUM(N53+(N53*$G$13)),0),0) -> 0 | R53: =IF(term>3,ROUND(SUM(P53+(P53*$G$13)),0),0) -> 0 | T53: =IF(term>4,ROUND(SUM(R53+(R53*$G$13)),0),0) -> 0
A54: =IF(B54=1,SUM($B$33:B53)+1,0) -> 0 | B54: =IF(G54=0,0,1) -> 0 | G54: 0 | I54: 0 | K54: =+L54*Merit -> 0 | L54: =ROUND(G54*I54,0) -> 0 | N54: =IF(term>1,ROUND(SUM(L54+(L54*$G$13)),0),0) -> 0 | P54: =IF(term>2,ROUND(SUM(N54+(N54*$G$13)),0),0) -> 0 | R54: =IF(term>3,ROUND(SUM(P54+(P54*$G$13)),0),0) -> 0 | T54: =IF(term>4,ROUND(SUM(R54+(R54*$G$13)),0),0) -> 0
A55: =IF(B55=1,SUM($B$33:B54)+1,0) -> 0 | B55: =IF(G55=0,0,1) -> 0 | G55: 0 | I55: 0 | K55: =+L55*Merit -> 0 | L55: 0 | N55: =IF(term>1,ROUND(SUM(L55+(L55*$G$13)),0),0) -> 0 | P55: =IF(term>2,ROUND(SUM(N55+(N55*$G$13)),0),0) -> 0 | R55: =IF(term>3,ROUND(SUM(P55+(P55*$G$13)),0),0) -> 0 | T55: =IF(term>4,ROUND(SUM(R55+(R55*$G$13)),0),0) -> 0
A56: =IF(B56=1,SUM($B$33:B55)+1,0) -> 0 | B56: =IF(G56=0,0,1) -> 0 | G56: 0 | I56: 0 | K56: =+L56*Merit -> 0 | L56: 0 | N56: =IF(term>1,ROUND(SUM(L56+(L56*$G$13)),0),0) -> 0 | P56: =IF(term>2,ROUND(SUM(N56+(N56*$G$13)),0),0) -> 0 | R56: =IF(term>3,ROUND(SUM(P56+(P56*$G$13)),0),0) -> 0 | T56: =IF(term>4,ROUND(SUM(R56+(R56*$G$13)),0),0) -> 0
A57: =IF(B57=1,SUM($B$33:B56)+1,0) -> 0 | B57: =IF(G57=0,0,1) -> 0 | G57: 0 | I57: 0 | K57: =+L57*Merit -> 0 | L57: 0 | N57: =IF(term>1,ROUND(SUM(L57+(L57*$G$13)),0),0) -> 0 | P57: =IF(term>2,ROUND(SUM(N57+(N57*$G$13)),0),0) -> 0 | R57: =IF(term>3,ROUND(SUM(P57+(P57*$G$13)),0),0) -> 0 | T57: =IF(term>4,ROUND(SUM(R57+(R57*$G$13)),0),0) -> 0
C58: Subtotals | L58: =SUM(L53:L57) -> 0 | N58: =SUM(N53:N57) -> 0 | P58: =SUM(P53:P57) -> 0 | R58: =SUM(R53:R57) -> 0 | T58: =SUM(T53:T57) -> 0
C61: Post Doctoral | G61: Salary cap for Post Docs http://grants.nih.gov/grants/guide/notice-files/NOT-OD-16-047.html
C62: Name | G62: Cal Mo | I62: Monthly Salary | L62: Year 1 | N62: Year 2 | P62: Year 3 | R62: Year 4 | T62: Year 5
A63: =IF(B63=1,SUM($B$33:B62)+1,0) -> 0 | B63: =IF(G63=0,0,1) -> 0 | G63: 0 | I63: 0 | K63: =+L63*PostDoc -> 0 | L63: =ROUND(G63*I63,0) -> 0 | N63: =IF(term>1,ROUND(SUM((L63*1.03)),0),0) -> 0 | P63: =IF(term>2,ROUND(SUM((N63*1.03)),0),0) -> 0 | R63: =IF(term>3,ROUND(SUM((P63*1.03)),0),0) -> 0 | T63: =IF(term>4,ROUND(SUM((R63*1.03)),0),0) -> 0
A64: =IF(B64=1,SUM($B$33:B63)+1,0) -> 0 | B64: =IF(G64=0,0,1) -> 0 | G64: 0 | I64: 0 | K64: =+L64*PostDoc -> 0 | L64: =ROUND(G64*I64,0) -> 0 | N64: =IF(term>1,ROUND(SUM((L64*1.03)),0),0) -> 0 | P64: =IF(term>2,ROUND(SUM((N64*1.03)),0),0) -> 0 | R64: =IF(term>3,ROUND(SUM((P64*1.03)),0),0) -> 0 | T64: =IF(term>4,ROUND(SUM((R64*1.03)),0),0) -> 0
A65: =IF(B65=1,SUM($B$33:B64)+1,0) -> 0 | B65: =IF(G65=0,0,1) -> 0 | G65: 0 | I65: 0 | K65: =+L65*PostDoc -> 0 | L65: 0 | N65: =IF(term>1,ROUND(SUM((L65*1.03)),0),0) -> 0 | P65: =IF(term>2,ROUND(SUM((N65*1.03)),0),0) -> 0 | R65: =IF(term>3,ROUND(SUM((P65*1.03)),0),0) -> 0 | T65: =IF(term>4,ROUND(SUM((R65*1.03)),0),0) -> 0
A66: =IF(B66=1,SUM($B$33:B65)+1,0) -> 0 | B66: =IF(G66=0,0,1) -> 0 | G66: 0 | I66: 0 | K66: =+L66*PostDoc -> 0 | L66: 0 | N66: =IF(term>1,ROUND(SUM((L66*1.03)),0),0) -> 0 | P66: =IF(term>2,ROUND(SUM((N66*1.03)),0),0) -> 0 | R66: =IF(term>3,ROUND(SUM((P66*1.03)),0),0) -> 0 | T66: =IF(term>4,ROUND(SUM((R66*1.03)),0),0) -> 0
A67: =IF(B67=1,SUM($B$33:B66)+1,0) -> 0 | B67: =IF(G67=0,0,1) -> 0 | G67: 0 | I67: 0 | K67: =+L67*PostDoc -> 0 | L67: 0 | N67: =IF(term>1,ROUND(SUM((L67*1.03)),0),0) -> 0 | P67: =IF(term>2,ROUND(SUM((N67*1.03)),0),0) -> 0 | R67: =IF(term>3,ROUND(SUM((P67*1.03)),0),0) -> 0 | T67: =IF(term>4,ROUND(SUM((R67*1.03)),0),0) -> 0
C68: Subtotals | L68: =SUM(L63:L67) -> 0 | N68: =SUM(N63:N67) -> 0 | P68: =SUM(P63:P67) -> 0 | R68: =SUM(R63:R67) -> 0 | T68: =SUM(T63:T67) -> 0
G70: Salary Cap for Graduate Students @ http://grants.nih.gov/grants/guide/notice-files/NOT-OD-16-047.html
C71: Graduate Assistants | I71: Annual
C72: Name | I72: Project Salary | L72: Year 1 | N72: Year 2 | P72: Year 3 | R72: Year 4 | T72: Year 5
A73: =IF(B73=1,SUM($B$33:B72)+1,0) -> 0 | B73: =IF(L73=0,0,1) -> 0 | I73: 0 | K73: =+L73*Grad -> 0 | L73: 0 | N73: =IF(term>1,ROUND(SUM((L73*1.03)),0),0) -> 0 | P73: =IF(term>2,ROUND(SUM((N73*1.03)),0),0) -> 0 | R73: =IF(term>3,ROUND(SUM((P73*1.03)),0),0) -> 0 | T73: =IF(term>4,ROUND(SUM((R73*1.03)),0),0) -> 0
A74: =IF(B74=1,SUM($B$33:B73)+1,0) -> 0 | B74: =IF(L74=0,0,1) -> 0 | I74: 0 | K74: =+L74*Grad -> 0 | L74: 0 | N74: =IF(term>1,ROUND(SUM((L74*1.03)),0),0) -> 0 | P74: =IF(term>2,ROUND(SUM((N74*1.03)),0),0) -> 0 | R74: =IF(term>3,ROUND(SUM((P74*1.03)),0),0) -> 0 | T74: =IF(term>4,ROUND(SUM((R74*1.03)),0),0) -> 0
A75: =IF(B75=1,SUM($B$33:B74)+1,0) -> 0 | B75: =IF(L75=0,0,1) -> 0 | I75: 0 | K75: =+L75*Grad -> 0 | L75: 0 | N75: =IF(term>1,ROUND(SUM((L75*1.03)),0),0) -> 0 | P75: =IF(term>2,ROUND(SUM((N75*1.03)),0),0) -> 0 | R75: =IF(term>3,ROUND(SUM((P75*1.03)),0),0) -> 0 | T75: =IF(term>4,ROUND(SUM((R75*1.03)),0),0) -> 0
A76: =IF(B76=1,SUM($B$33:B75)+1,0) -> 0 | B76: =IF(L76=0,0,1) -> 0 | I76: 0 | K76: =+L76*Grad -> 0 | L76: 0 | N76: =IF(term>1,ROUND(SUM((L76*1.03)),0),0) -> 0 | P76: =IF(term>2,ROUND(SUM((N76*1.03)),0),0) -> 0 | R76: =IF(term>3,ROUND(SUM((P76*1.03)),0),0) -> 0 | T76: =IF(term>4,ROUND(SUM((R76*1.03)),0),0) -> 0
A77: =IF(B77=1,SUM($B$33:B76)+1,0) -> 0 | B77: =IF(L77=0,0,1) -> 0 | I77: 0 | K77: =+L77*Grad -> 0 | L77: 0 | N77: =IF(term>1,ROUND(SUM((L77*1.03)),0),0) -> 0 | P77: =IF(term>2,ROUND(SUM((N77*1.03)),0),0) -> 0 | R77: =IF(term>3,ROUND(SUM((P77*1.03)),0),0) -> 0 | T77: =IF(term>4,ROUND(SUM((R77*1.03)),0),0) -> 0
C78: Subtotals | L78: =SUM(L73:L77) -> 0 | N78: =SUM(N73:N77) -> 0 | P78: =SUM(P73:P77) -> 0 | R78: =SUM(R73:R77) -> 0 | T78: =SUM(T73:T77) -> 0
L79: =COUNTIF(L73:L77,">0") -> 0 | N79: =COUNTIF(N73:N77,">0") -> 0 | P79: =COUNTIF(P73:P77,">0") -> 0 | R79: =COUNTIF(R73:R77,">0") -> 0 | T79: =COUNTIF(T73:T77,">0") -> 0
C81: Undergraduate Students
C82: Name | G82: Hours | I82: $/Hour | L82: Year 1 | N82: Year 2 | P82: Year 3 | R82: Year 4 | T82: Year 5
G83: 0 | I83: 0 | K83: 0 | L83: =ROUND(G83*I83,0) -> 0 | N83: =IF(term>1,ROUND(SUM(L83+(L83*$G$13)),0),0) -> 0 | P83: =IF(term>2,ROUND(SUM(N83+(N83*$G$13)),0),0) -> 0 | R83: =IF(term>3,ROUND(SUM(P83+(P83*$G$13)),0),0) -> 0 | T83: =IF(term>4,ROUND(SUM(R83+(R83*$G$13)),0),0) -> 0
G84: 0 | I84: 0 | K84: 0 | L84: =ROUND(G84*I84,0) -> 0 | N84: =IF(term>1,ROUND(SUM(L84+(L84*$G$13)),0),0) -> 0 | P84: =IF(term>2,ROUND(SUM(N84+(N84*$G$13)),0),0) -> 0 | R84: =IF(term>3,ROUND(SUM(P84+(P84*$G$13)),0),0) -> 0 | T84: =IF(term>4,ROUND(SUM(R84+(R84*$G$13)),0),0) -> 0
G85: 0 | I85: 0 | K85: 0 | L85: 0 | N85: =IF(term>1,ROUND(SUM(L85+(L85*$G$13)),0),0) -> 0 | P85: =IF(term>2,ROUND(SUM(N85+(N85*$G$13)),0),0) -> 0 | R85: =IF(term>3,ROUND(SUM(P85+(P85*$G$13)),0),0) -> 0 | T85: =IF(term>4,ROUND(SUM(R85+(R85*$G$13)),0),0) -> 0
G86: 0 | I86: 0 | K86: 0 | L86: 0 | N86: =IF(term>1,ROUND(SUM(L86+(L86*$G$13)),0),0) -> 0 | P86: =IF(term>2,ROUND(SUM(N86+(N86*$G$13)),0),0) -> 0 | R86: =IF(term>3,ROUND(SUM(P86+(P86*$G$13)),0),0) -> 0 | T86: =IF(term>4,ROUND(SUM(R86+(R86*$G$13)),0),0) -> 0
G87: 0 | I87: 0 | K87: 0 | L87: 0 | N87: =IF(term>1,ROUND(SUM(L87+(L87*$G$13)),0),0) -> 0 | P87: =IF(term>2,ROUND(SUM(N87+(N87*$G$13)),0),0) -> 0 | R87: =IF(term>3,ROUND(SUM(P87+(P87*$G$13)),0),0) -> 0 | T87: =IF(term>4,ROUND(SUM(R87+(R87*$G$13)),0),0) -> 0
A88: =IF(B88=1,SUM($B$33:B87)+1,0) -> 0 | B88: =IF(L88=0,0,1) -> 0 | C88: Undergraduate Students | L88: =SUM(L83:L87) -> 0 | N88: 0 | P88: 0 | R88: 0 | T88: 0
C90: Subtotal Personnel | L90: =SUM(L39+L48+L88+L78+L68+L58) -> 0 | N90: =SUM(N39+N48+N88+N78+N68+N58) -> 0 | P90: =SUM(P39+P48+P88+P78+P68+P58) -> 0 | R90: =SUM(R39+R48+R88+R78+R68+R58) -> 0 | T90: =SUM(T39+T48+T88+T78+T68+T58) -> 0
C92: Faculty Benefits | L92: =ROUND(+L39*Faculty,0) -> 0 | N92: =ROUND(+N39*Faculty,0) -> 0 | P92: =ROUND(+P39*Faculty,0) -> 0 | R92: =ROUND(+R39*Faculty,0) -> 0 | T92: =ROUND(+T39*Faculty,0) -> 0
C93: P & S Benefits | L93: =ROUND(+L48*Professional,0) -> 0 | N93: =ROUND(+N48*Professional,0) -> 0 | P93: 0 | R93: 0 | T93: 0
C94: Merit Benefits | L94: =ROUND(+L58*Merit,0) -> 0 | N94: =ROUND(+N58*Merit,0) -> 0 | P94: 0 | R94: 0 | T94: 0
C95: Postdoctoral Benefits | L95: =ROUND(+L68*PostDoc,0) -> 0 | N95: =ROUND(+N68*PostDoc,0) -> 0 | P95: 0 | R95: 0 | T95: 0
C96: Graduate Assistant Benefits | L96: =ROUND(+L78*Grad,0) -> 0 | N96: =ROUND(+N78*Grad,0) -> 0 | P96: =ROUND(+P78*Grad,0) -> 0 | R96: =ROUND(+R78*Grad,0) -> 0 | T96: =ROUND(+T78*Grad,0) -> 0
C97: Undergraduate | L97: =ROUND(+L88*ug,0) -> 0 | N97: =ROUND(+N88*ug,0) -> 0 | P97: =ROUND(+P88*ug,0) -> 0 | R97: =ROUND(+R88*ug,0) -> 0 | T97: =ROUND(+T88*ug,0) -> 0
C98: Subtotal Fringe | L98: =SUM(L92:L97) -> 0 | N98: =SUM(N92:N97) -> 0 | P98: =SUM(P92:P97) -> 0 | R98: =SUM(R92:R97) -> 0 | T98: =SUM(T92:T97) -> 0
C100: Total Personnel | L100: =L90+L98 -> 0 | N100: =N90+N98 -> 0 | P100: =P90+P98 -> 0 | R100: =R90+R98 -> 0 | T100: =T90+T98 -> 0
C103: Consultants
C104: (Names)
L105: 0 | N105: =IF(term>1,ROUND(SUM(L105+(L105*$G$12)),0),0) -> 0 | P105: =IF(term>2,ROUND(SUM(N105+(N105*$G$12)),0),0) -> 0 | R105: =IF(term>3,ROUND(SUM(P105+(P105*$G$12)),0),0) -> 0 | T105: =IF(term>4,ROUND(SUM(R105+(R105*$G$12)),0),0) -> 0
L106: 0 | N106: =IF(term>1,ROUND(SUM(L106+(L106*$G$12)),0),0) -> 0 | P106: =IF(term>2,ROUND(SUM(N106+(N106*$G$12)),0),0) -> 0 | R106: =IF(term>3,ROUND(SUM(P106+(P106*$G$12)),0),0) -> 0 | T106: =IF(term>4,ROUND(SUM(R106+(R106*$G$12)),0),0) -> 0
L107: 0 | N107: =IF(term>1,ROUND(SUM(L107+(L107*$G$12)),0),0) -> 0 | P107: =IF(term>2,ROUND(SUM(N107+(N107*$G$12)),0),0) -> 0 | R107: =IF(term>3,ROUND(SUM(P107+(P107*$G$12)),0),0) -> 0 | T107: =IF(term>4,ROUND(SUM(R107+(R107*$G$12)),0),0) -> 0
C108: Subtotals | L108: =SUM(L105:L107) -> 0 | N108: =SUM(N105:N107) -> 0 | P108: =SUM(P105:P107) -> 0 | R108: =SUM(R105:R107) -> 0 | T108: =SUM(T105:T107) -> 0
C111: Equipment
C112: (Itemize)
L113: 0 | N113: 0 | P113: 0 | R113: 0 | T113: 0
L114: 0 | N114: 0 | P114: 0 | R114: 0 | T114: 0
L115: 0 | N115: 0 | P115: 0 | R115: 0 | T115: 0
L116: 0 | N116: 0 | P116: 0 | R116: 0 | T116: 0
C117: Subtotals | L117: =SUM(L113:L116) -> 0 | N117: =SUM(N113:N116) -> 0 | P117: =SUM(P113:P116) -> 0 | R117: =SUM(R113:R116) -> 0 | T117: =SUM(T113:T116) -> 0
C120: Supplies
C121: (Itemize)
L122: 0 | N122: =IF(term>1,ROUND(SUM(L122+(L122*$G$12)),0),0) -> 0 | P122: =IF(term>2,ROUND(SUM(N122+(N122*$G$12)),0),0) -> 0 | R122: =IF(term>3,ROUND(SUM(P122+(P122*$G$12)),0),0) -> 0 | T122: =IF(term>4,ROUND(SUM(R122+(R122*$G$12)),0),0) -> 0
L123: 0 | N123: =IF(term>1,ROUND(SUM(L123+(L123*$G$12)),0),0) -> 0 | P123: 0 | R123: 0 | T123: 0
L124: 0 | N124: 0 | P124: 0 | R124: 0 | T124: 0
L125: 0 | N125: 0 | P125: 0 | R125: 0 | T125: 0
L126: 0 | N126: 0 | P126: 0 | R126: 0 | T126: 0
L127: 0 | N127: 0 | P127: 0 | R127: 0 | T127: 0
L128: 0 | N128: 0 | P128: 0 | R128: 0 | T128: 0
L129: 0 | N129: 0 | P129: 0 | R129: 0 | T129: 0
L130: 0 | N130: 0 | P130: 0 | R130: 0 | T130: 0
L131: 0 | N131: 0 | P131: 0 | R131: 0 | T131: 0
L132: 0 | N132: 0 | P132: 0 | R132: =IF(term>3,ROUND(SUM(P132+(P132*$G$12)),0),0) -> 0 | T132: 0
L133: 0 | N133: 0 | P133: 0 | R133: 0 | T133: 0
C134: Subtotals | L134: =SUM(L122:L133) -> 0 | N134: =SUM(N122:N133) -> 0 | P134: =SUM(P122:P133) -> 0 | R134: =SUM(R122:R133) -> 0 | T134: =SUM(T122:T133) -> 0
C137: Patient Care
C138: Inpatient | L138: 0 | N138: =IF(term>1,ROUND(SUM(L138+(L138*$G$12)),0),0) -> 0 | P138: =IF(term>2,ROUND(SUM(N138+(N138*$G$12)),0),0) -> 0 | R138: =IF(term>3,ROUND(SUM(P138+(P138*$G$12)),0),0) -> 0 | T138: =IF(term>4,ROUND(SUM(R138+(R138*$G$12)),0),0) -> 0
C139: Outpatient | L139: 0 | N139: =IF(term>1,ROUND(SUM(L139+(L139*$G$12)),0),0) -> 0 | P139: =IF(term>2,ROUND(SUM(N139+(N139*$G$12)),0),0) -> 0 | R139: =IF(term>3,ROUND(SUM(P139+(P139*$G$12)),0),0) -> 0 | T139: =IF(term>4,ROUND(SUM(R139+(R139*$G$12)),0),0) -> 0
C140: Subtotals | L140: =SUM(L138:L139) -> 0 | N140: =SUM(N138:N139) -> 0 | P140: =SUM(P138:P139) -> 0 | R140: =SUM(R138:R139) -> 0 | T140: =SUM(T138:T139) -> 0
C143: Alterations/Renovations - Itemize
L144: 0 | N144: 0 | P144: =IF(term>2,ROUND(SUM(N144+(N144*$G$12)),0),0) -> 0 | R144: =IF(term>3,ROUND(SUM(P144+(P144*$G$12)),0),0) -> 0 | T144: =IF(term>4,ROUND(SUM(R144+(R144*$G$12)),0),0) -> 0
L145: 0 | N145: 0 | P145: =IF(term>2,ROUND(SUM(N145+(N145*$G$12)),0),0) -> 0 | R145: =IF(term>3,ROUND(SUM(P145+(P145*$G$12)),0),0) -> 0 | T145: =IF(term>4,ROUND(SUM(R145+(R145*$G$12)),0),0) -> 0
L146: 0 | N146: =IF(term>1,ROUND(SUM(L146+(L146*$G$12)),0),0) -> 0 | P146: =IF(term>2,ROUND(SUM(N146+(N146*$G$12)),0),0) -> 0 | R146: =IF(term>3,ROUND(SUM(P146+(P146*$G$12)),0),0) -> 0 | T146: =IF(term>4,ROUND(SUM(R146+(R146*$G$12)),0),0) -> 0
L147: 0 | N147: =IF(term>1,ROUND(SUM(L147+(L147*$G$12)),0),0) -> 0 | P147: =IF(term>2,ROUND(SUM(N147+(N147*$G$12)),0),0) -> 0 | R147: =IF(term>3,ROUND(SUM(P147+(P147*$G$12)),0),0) -> 0 | T147: =IF(term>4,ROUND(SUM(R147+(R147*$G$12)),0),0) -> 0
C148: Subtotals | L148: =SUM(L144:L147) -> 0 | N148: =SUM(N144:N147) -> 0 | P148: =SUM(P144:P147) -> 0 | R148: =SUM(R144:R147) -> 0 | T148: =SUM(T144:T147) -> 0
C151: Travel - Itemize
L152: 0 | N152: =IF(term>1,ROUND(SUM(L152+(L152*$G$12)),0),0) -> 0 | P152: =IF(term>2,ROUND(SUM(N152+(N152*$G$12)),0),0) -> 0 | R152: =IF(term>3,ROUND(SUM(P152+(P152*$G$12)),0),0) -> 0 | T152: =IF(term>4,ROUND(SUM(R152+(R152*$G$12)),0),0) -> 0
L153: 0 | N153: =IF(term>1,ROUND(SUM(L153+(L153*$G$12)),0),0) -> 0 | P153: =IF(term>2,ROUND(SUM(N153+(N153*$G$12)),0),0) -> 0 | R153: =IF(term>3,ROUND(SUM(P153+(P153*$G$12)),0),0) -> 0 | T153: =IF(term>4,ROUND(SUM(R153+(R153*$G$12)),0),0) -> 0
L154: 0 | N154: =IF(term>1,ROUND(SUM(L154+(L154*$G$12)),0),0) -> 0 | P154: =IF(term>2,ROUND(SUM(N154+(N154*$G$12)),0),0) -> 0 | R154: =IF(term>3,ROUND(SUM(P154+(P154*$G$12)),0),0) -> 0 | T154: =IF(term>4,ROUND(SUM(R154+(R154*$G$12)),0),0) -> 0
L155: 0 | N155: =IF(term>1,ROUND(SUM(L155+(L155*$G$12)),0),0) -> 0 | P155: =IF(term>2,ROUND(SUM(N155+(N155*$G$12)),0),0) -> 0 | R155: =IF(term>3,ROUND(SUM(P155+(P155*$G$12)),0),0) -> 0 | T155: =IF(term>4,ROUND(SUM(R155+(R155*$G$12)),0),0) -> 0
C156: Subtotals | L156: =SUM(L152:L155) -> 0 | N156: =SUM(N152:N155) -> 0 | P156: =SUM(P152:P155) -> 0 | R156: =SUM(R152:R155) -> 0 | T156: =SUM(T152:T155) -> 0
C159: Other - Itemize
L160: 0 | N160: 0 | P160: 0 | R160: 0 | T160: =IF(term>4,ROUND(SUM(R160+(R160*$G$12)),0),0) -> 0
L161: 0 | N161: =IF(term>1,ROUND(SUM(L161+(L161*$G$12)),0),0) -> 0 | P161: =IF(term>2,ROUND(SUM(N161+(N161*$G$12)),0),0) -> 0 | R161: =IF(term>3,ROUND(SUM(P161+(P161*$G$12)),0),0) -> 0 | T161: 0
L162: 0 | N162: 0 | P162: 0 | R162: 0 | T162: 0
L163: 0 | N163: 0 | P163: 0 | R163: 0 | T163: 0
L164: 0 | N164: 0 | P164: 0 | R164: 0 | T164: 0
L165: 0 | N165: 0 | P165: 0 | R165: 0 | T165: 0
L166: 0 | N166: 0 | P166: 0 | R166: 0 | T166: 0
L167: 0 | N167: =IF(term>1,ROUND(SUM(L167+(L167*$G$12)),0),0) -> 0 | P167: =IF(term>2,ROUND(SUM(N167+(N167*$G$12)),0),0) -> 0 | R167: =IF(term>3,ROUND(SUM(P167+(P167*$G$12)),0),0) -> 0 | T167: =IF(term>4,ROUND(SUM(R167+(R167*$G$12)),0),0) -> 0
C168: Tuition | G168: (most majors) | L168: =Tuition!K6 -> 0 | N168: =Tuition!M6 -> 0 | P168: =Tuition!O6 -> 0 | R168: =Tuition!Q6 -> 0 | T168: =Tuition!S6 -> 0 | V168: =SUM(L168:T168) -> 0 | X168: Total Tuition - Engineering
C169: Tuition | G169: (Engineering & Architecture) | L169: =Tuition!K26 -> 0 | N169: =Tuition!M26 -> 0 | P169: =Tuition!O26 -> 0 | R169: =Tuition!Q26 -> 0 | T169: =Tuition!S26 -> 0 | V169: =SUM(L169:T169) -> 0 | X169: Total Tuition - Non-Engineering
C170: Tuition | G170: (Business & STB) | L170: =Tuition!K46 -> 0 | N170: =Tuition!M46 -> 0 | P170: =Tuition!O46 -> 0 | R170: =Tuition!Q46 -> 0 | T170: =Tuition!S46 -> 0 | V170: =SUM(L170:T170) -> 0 | X170: Total Tuition - Non-Engineering
C171: Subtotals | L171: =SUM(L160:L170) -> 0 | N171: =SUM(N160:N170) -> 0 | P171: =SUM(P160:P170) -> 0 | R171: =SUM(R160:R170) -> 0 | T171: =SUM(T160:T170) -> 0
C173: Subtotal Direct Cost at ISU | L173: =SUM(L100+L108+L117+L134+L140+L148+L156+L171) -> 0 | N173: =SUM(N100+N108+N117+N134+N140+N148+N156+N171) -> 0 | P173: =SUM(P100+P108+P117+P134+P140+P148+P156+P171) -> 0 | R173: =SUM(R100+R108+R117+R134+R140+R148+R156+R171) -> 0 | T173: =SUM(T100+T108+T117+T134+T140+T148+T156+T171) -> 0 | V173: =SUM(L173:T173) -> 0
L174: =SUM(L100+L108+L134+L148+L156+L171-L168-L169-L170) -> 0 | M174: =SUM(M100+M108+M134+M148+M171-M168-M169-M170) -> 0 | N174: =SUM(N100+N108+N134+N148+N156+N171-N168-N169-N170) -> 0 | O174: 0 | P174: =SUM(P100+P108+P134+P148+P156+P171-P168-P169-P170) -> 0 | Q174: 0 | R174: =SUM(R100+R108+R134+R148+R156+R171-R168-R169-R170) -> 0 | S174: 0 | T174: =SUM(T100+T108+T134+T148+T156+T171-T168-T169-T170) -> 0
C176: Subawards | AF176: Sub to IDC | AH176: Not Sub to IDC
C177: Subawardee #1 | AF177: =IF(SUM(L178:T179)>25000,25000,SUM(L178:T179)) -> 0 | AH177: =SUM(L178:T179)-AF177 -> 0
I178: Direct | L178: 0 | N178: 0 | P178: 0 | R178: 0 | T178: 0
I179: F&A (Indirect) | L179: 0 | N179: 0 | P179: 0 | R179: 0 | T179: 0
L180: =IF(L178+L179>=25000,"25,000",L178+L179) -> 0 | N180: =IF(N178+N179+L180>=25000, 25000-L180, N178+N179) -> 0 | P180: =IF(P178+P179+N180+L180>=25000, 25000-(N180+L180), P178+P179) -> 0 | R180: =IF(R178+R179+P180+N180+L180>=25000, 25000-(P180+N180+L180), R178+R179) -> 0 | T180: =IF(T178+T179+R180+P180+N180+L180>=25000, 25000-(R180+P180+N180+L180), T178+T179) -> 0
C181: Subawardee #2 | AF181: =IF(SUM(L182:T183)>25000,25000,SUM(L182:T183)) -> 0 | AH181: =SUM(L182:T183)-AF181 -> 0
I182: Direct | L182: 0 | N182: 0 | P182: 0 | R182: 0 | T182: 0
I183: F&A (Indirect) | L183: 0 | N183: 0 | P183: 0 | R183: 0 | T183: 0
L184: =IF(L182+L183>=25000,"25,000",L182+L183) -> 0 | N184: =IF(N182+N183+L184>=25000, 25000-L184, N182+N183) -> 0 | P184: =IF(P182+P183+N184+L184>=25000, 25000-(N184+L184), P182+P183) -> 0 | R184: =IF(R182+R183+P184+N184+L184>=25000, 25000-(P184+N184+L184), R182+R183) -> 0 | T184: =IF(T182+T183+R184+P184+N184+L184>=25000, 25000-(R184+P184+N184+L184), T182+T183) -> 0
C185: Subawardee #3 | AF185: =IF(SUM(L186:T187)>25000,25000,SUM(L186:T187)) -> 0 | AH185: =SUM(L186:T187)-AF185 -> 0
I186: Direct | L186: 0 | N186: 0 | P186: 0 | R186: 0 | T186: 0
I187: F&A (Indirect) | L187: 0 | N187: 0 | P187: 0 | R187: 0 | T187: 0
L188: =IF(L186+L187>=25000,"25,000",L186+L187) -> 0 | N188: =IF(N186+N187+L188>=25000, 25000-L188, N186+N187) -> 0 | P188: =IF(P186+P187+N188+L188>=25000, 25000-(N188+L188), P186+P187) -> 0 | R188: =IF(R186+R187+P188+N188+L188>=25000, 25000-(P188+N188+L188), R186+R187) -> 0 | T188: =IF(T186+T187+R188+P188+N188+L188>=25000, 25000-(R188+P188+N188+L188), T186+T187) -> 0
C189: Subawardee #4 | AF189: =IF(SUM(L190:T191)>25000,25000,SUM(L190:T191)) -> 0 | AH189: =SUM(L190:T191)-AF189 -> 0
I190: Direct | L190: 0 | N190: 0 | P190: 0 | R190: 0 | T190: 0
I191: F&A (Indirect) | L191: 0 | N191: 0 | P191: 0 | R191: 0 | T191: 0
L192: =IF(L190+L191>=25000,"25,000",L190+L191) -> 0 | N192: =IF(N190+N191+L192>=25000, 25000-L192, N190+N191) -> 0 | P192: =IF(P190+P191+N192+L192>=25000, 25000-(N192+L192), P190+P191) -> 0 | R192: =IF(R190+R191+P192+N192+L192>=25000, 25000-(P192+N192+L192), R190+R191) -> 0 | T192: =IF(T190+T191+R192+P192+N192+L192>=25000, 25000-(R192+P192+N192+L192), T190+T191) -> 0 | AF192: =SUM(AF177:AF190) -> 0 | AH192: =SUM(AH177:AH189) -> 0
C194: Total Direct Subawards | L194: =SUM(L178+L182+L186+L190) -> 0 | N194: =SUM(N178+N182+N186+N190) -> 0 | P194: =SUM(P178+P182+P186+P190) -> 0 | R194: =SUM(R178+R182+R186+R190) -> 0 | T194: =SUM(T178+T182+T186+T190) -> 0 | V194: =SUM(L194:T194) -> 0
C195: Total Indirect Subawards | L195: =SUM(L179+L183+L187+L191) -> 0 | N195: =SUM(N179+N183+N187+N191) -> 0 | P195: =SUM(P179+P183+P187+P191) -> 0 | R195: =SUM(R179+R183+R187+R191) -> 0 | T195: =SUM(T179+T183+T187+T191) -> 0 | V195: =SUM(L195:T195) -> 0
C199: Total Direct | L199: =SUM(L173+L194+L195) -> 0 | N199: =SUM(N173+N194+N195) -> 0 | P199: =SUM(P173+P194+P195) -> 0 | R199: =SUM(R173+R194+R195) -> 0 | T199: =SUM(T173+T194+T195) -> 0
C200: F&A Base | L200: =IF(L180>25000,"25000",L180)+IF(L184>25000,"25000",L184)+IF(L188>25000,"25000",L188)+IF(L192>25000,"25000",L192)+L174 -> 0 | N200: =IF(N180>25000,"25000",N180)+IF(N184>25000,"25000",N184)+IF(N188>25000,"25000",N188)+IF(N192>25000,"25000",N192)+N174 -> 0 | P200: =IF(P180>25000,"25000",P180)+IF(P184>25000,"25000",P184)+IF(P188>25000,"25000",P188)+IF(P192>25000,"25000",P192)+P174 -> 0 | R200: =IF(R180>25000,"25000",R180)+IF(R184>25000,"25000",R184)+IF(R188>25000,"25000",R188)+IF(R192>25000,"25000",R192)+R174 -> 0 | T200: =IF(T180>25000,"25000",T180)+IF(T184>25000,"25000",T184)+IF(T188>25000,"25000",T188)+IF(T192>25000,"25000",T192)+T174 -> 0
C201: Total F&A | L201: =ROUND(+L200*$G$20,0) -> 0 | N201: =ROUND(+N200*$G$20,0) -> 0 | P201: =ROUND(+P200*$G$20,0) -> 0 | R201: =ROUND(+R200*$G$20,0) -> 0 | T201: =ROUND(+T200*$G$20,0) -> 0
C202: Total Costs | L202: =SUM(L199+L201) -> 0 | N202: =SUM(N199+N201) -> 0 | P202: =SUM(P199+P201) -> 0 | R202: =SUM(R199+R201) -> 0 | T202: =SUM(T199+T201) -> 0
E203: This is your Modular Amount > > >
L204: =+L173+L194 -> 0 | N204: =+N173+N194 -> 0 | P204: =+P173+P194 -> 0 | R204: =+R173+R194 -> 0 | T204: =+T173+T194 -> 0
C205: =term -> 1 | D205: -Year Totals
C206: Project Direct total | E206: =L199+N199+P199+R199+T199 -> 0
C207: Project F&A base | E207: =SUM(L200+N200+P200+R200+T200) -> 0
C208: Project F&A total | E208: =SUM(L201+N201+P201+R201+T201) -> 0
C209: Project Total Cost | E209: =(E206+E208) -> 0

Sheet Mod Budget Form
B2: Principal Investigator/Program Director (Last, First, Middle): | I2: =+'Base Budget'!C33 -> PI name
A4: BUDGET JUSTIFICATION PAGE
A5: MODULAR RESEARCH GRANT APPLICATION
B7: Initial Period | D7: 2nd | F7: 3rd | H7: 4th | J7: 5th | L7: Sum Total (For Entire Project Period)
A8: DC less Consortium F&A | B8: =+'Base Budget'!L173+'Base Budget'!L194 -> 0 | D8: =+'Base Budget'!N173+'Base Budget'!N194 -> 0 | F8: =+'Base Budget'!P173+'Base Budget'!P194 -> 0 | H8: =+'Base Budget'!R173+'Base Budget'!R194 -> 0 | J8: =+'Base Budget'!T173+'Base Budget'!T194 -> 0 | L8: =SUM(B8:K8) -> 0
B9: (Item 7a, Face Page) | L9: (Item 8a, Face Page)
A10: Consortium F&A | B10: =+'Base Budget'!L195 -> 0 | D10: =+'Base Budget'!N195 -> 0 | F10: =+'Base Budget'!P195 -> 0 | H10: =+'Base Budget'!R195 -> 0 | J10: =+'Base Budget'!T195 -> 0 | L10: =SUM(B10:K10) -> 0
A11: Total Direct Costs | B11: =SUM(B8:C10) -> 0 | D11: =SUM(D8:E10) -> 0 | F11: =SUM(F8:G10) -> 0 | H11: =SUM(H8:I10) -> 0 | J11: =SUM(J8:K10) -> 0 | L11: =SUM(B11:K11) -> 0
A13: Personnel
A35: Consortium
A51: Fixed Fee (SBIR/STTR Only)
A57: PHS 398 (Rev. 04/06) | F57: Page | I57: Modular Budget Format Page

Sheet Form Page 4 (hidden)
A2: ::
E3: Principal Investigator/Program Director (Last,First, Middle): | K3: =+'Base Budget'!C33 -> PI name
E4: DETAILED BUDGET FOR INITIAL BUDGET PERIOD | K4: FROM | L4: THROUGH
F5: DIRECT COSTS ONLY
A7: PERSONNEL (Applicant organization only)
A8: Use Cal, Acad, or Summer to Enter Months Devoted to Project
A9: Enter Dollar Amounts Requested (omit cents) for Salary Requested and Fringe Benefits
F10: ROLE ON | G10: Cal. | H10: Acad. | I10: Sum. | J10: INST.BASE | K10: SALARY | L10: FRINGE
D11: NAME | F11: PROJECT | G11: Months | H11: Months | I11: Months | K11: REQUESTED | L11: BENEFITS | M11: TOTALS
F12: Principal Investigator
A13: =VLOOKUP(1,'Base Budget'!$A$33:C88,3,FALSE) -> 
A15: =VLOOKUP(2,'Base Budget'!A33:C88,3,FALSE) -> 
A17: =VLOOKUP(3,'Base Budget'!A33:C88,3,FALSE) -> 
A19: =VLOOKUP(4,'Base Budget'!A33:C88,3,FALSE) -> 
A21: =VLOOKUP(5,'Base Budget'!A33:C88,3,FALSE) -> 
A23: =VLOOKUP(6,'Base Budget'!A33:C88,3,FALSE) -> 
A25: =VLOOKUP(7,'Base Budget'!A33:C88,3,FALSE) -> 
A27: =VLOOKUP(8,'Base Budget'!A33:C88,3,FALSE) -> 
A29: =VLOOKUP(9,'Base Budget'!A33:C88,3,FALSE) -> 
G31: SUBTOTALS | K31: =SUMIF(K13:K29,">1",K13:K29) -> 0 | L31: =SUMIF(L13:L29,">1",L13:L29) -> 0 | M31: =SUMIF(M13:M29,">1",M13:M29) -> 0
A32: CONSULTANT COSTS
M34: =+'Base Budget'!L108 -> 0
A35: EQUIPMENT (Itemize)
M37: =+'Base Budget'!L117 -> 0
A38: SUPPLIES (Itemize by category)
M44: =+'Base Budget'!L134 -> 0
A45: TRAVEL
M46: =+'Base Budget'!L156 -> 0
A47: INPATIENT PATIENT CARE COSTS | M47: =+'Base Budget'!L138 -> 0
A48: OUTPATIENT PATIENT CARE COSTS | M48: =+'Base Budget'!L139 -> 0
A49: ALTERATIONS AND RENOVATIONS (Itemize by category)
M50: =+'Base Budget'!L148 -> 0
A51: OTHER EXPENSES (itemize by category)
M58: =+'Base Budget'!L171 -> 0
A59: CONSORTIUM/CONTRACTUAL COSTS | H59: DIRECT COSTS | L59: =+'Base Budget'!L194 -> 0
A60: SUBTOTAL DIRECT COSTS FOR INITIAL BUDGET PERIOD (Item 7a, Face Page) | L60: =SUM(M30:M58)+L59 -> 0
A61: CONSORTIUM/CONTRACTUAL COSTS | H61: FACILITIES AND ADMINISTRATIVE COSTS | L61: =+'Base Budget'!L195 -> 0
A62: TOTAL DIRECT COSTS FOR INITIAL BUDGET PERIOD | L62: =+L60+L61 -> 0
A63: SBIR/STTR Only: FEE REQUESTED
A64: PHS 398 (Rev. 06/09) | G64: Page
M65: Form Page 4

Sheet Form Page 5 (hidden)
A1: ::
B2: Principal Investigator/Program Director (Last,First, Middle): | I2: =+'Base Budget'!C33 -> PI name
F3: BUDGET FOR ENTIRE PROPOSED PROJECT PERIOD
G4: DIRECT COSTS ONLY
F5: INITIAL BUDGET | I5: 2nd ADDITIONAL | J5: 3rd ADDITIONAL | K5: 4th ADDITIONAL | L5: 5th ADDITIONAL
B6: BUDGET CATEGORY | F6: PERIOD | I6: YEAR OF SUPPORT | J6: YEAR OF SUPPORT | K6: YEAR OF SUPPORT | L6: YEAR OF SUPPORT
C7: TOTALS | F7: (from Form Page 4) | I7: REQUESTED | J7: REQUESTED | K7: REQUESTED | L7: REQUESTED
A8: PERSONNEL: Salary and fringe
A9: benefits. Applicant organization | F9: =+'Base Budget'!L100 -> 0 | I9: =+'Base Budget'!N100 -> 0 | J9: =+'Base Budget'!P100 -> 0 | K9: =+'Base Budget'!R100 -> 0 | L9: =+'Base Budget'!T100 -> 0
A10: only.
A12: CONSULTANT COSTS | F12: =+'Base Budget'!L108 -> 0 | I12: =+'Base Budget'!N108 -> 0 | J12: =+'Base Budget'!P108 -> 0 | K12: =+'Base Budget'!R108 -> 0 | L12: =+'Base Budget'!T108 -> 0
A15: EQUIPMENT | F15: =+'Base Budget'!L117 -> 0 | I15: =+'Base Budget'!N117 -> 0 | J15: =+'Base Budget'!P117 -> 0 | K15: =+'Base Budget'!R117 -> 0 | L15: =+'Base Budget'!T117 -> 0
A18: SUPPLIES | F18: =+'Base Budget'!L134 -> 0 | I18: =+'Base Budget'!N134 -> 0 | J18: =+'Base Budget'!P134 -> 0 | K18: =+'Base Budget'!R134 -> 0 | L18: =+'Base Budget'!T134 -> 0
A21: TRAVEL | F21: =+'Base Budget'!L156 -> 0 | I21: =+'Base Budget'!N156 -> 0 | J21: =+'Base Budget'!P156 -> 0 | K21: =+'Base Budget'!R156 -> 0 | L21: =+'Base Budget'!T156 -> 0
A24: INPATIENT CARE COSTS | F24: =+'Base Budget'!L138 -> 0 | I24: =+'Base Budget'!N138 -> 0 | J24: =+'Base Budget'!P138 -> 0 | K24: =+'Base Budget'!R138 -> 0 | L24: =+'Base Budget'!T138 -> 0
A26: OUTPATIENT CARE COSTS | F26: =+'Base Budget'!L139 -> 0 | I26: =+'Base Budget'!N139 -> 0 | J26: =+'Base Budget'!P139 -> 0 | K26: =+'Base Budget'!R139 -> 0 | L26: =+'Base Budget'!T139 -> 0
A27: ALTERATIONS AND
A28: RENOVATIONS | F28: =+'Base Budget'!L148 -> 0 | I28: =+'Base Budget'!N148 -> 0 | J28: =+'Base Budget'!P148 -> 0 | K28: =+'Base Budget'!R148 -> 0 | L28: =+'Base Budget'!T148 -> 0
A30: OTHER EXPENSES | F30: =+'Base Budget'!L171 -> 0 | I30: =+'Base Budget'!N171 -> 0 | J30: =+'Base Budget'!P171 -> 0 | K30: =+'Base Budget'!R171 -> 0 | L30: =+'Base Budget'!T171 -> 0
A32: DIRECT CONSORTIUM/
A33: CONTRACTUAL | F33: =+'Base Budget'!L194 -> 0 | I33: =+'Base Budget'!N194 -> 0 | J33: =+'Base Budget'!P194 -> 0 | K33: =+'Base Budget'!R194 -> 0 | L33: =+'Base Budget'!T194 -> 0
A34: COSTS
A36: SUBTOTAL DIRECT COSTS | F36: =SUM(F8:F34) -> 0 | I36: =SUM(I8:I34) -> 0 | J36: =SUM(J8:J34) -> 0 | K36: =SUM(K8:K34) -> 0 | L36: =SUM(L8:L34) -> 0
A37: (Sum - Item 8a, Face Page)
A38: F&A CONSORTIUM/
A39: CONTRACTUAL | F39: =+'Base Budget'!L195 -> 0 | I39: =+'Base Budget'!N195 -> 0 | J39: =+'Base Budget'!P195 -> 0 | K39: =+'Base Budget'!R195 -> 0 | L39: =+'Base Budget'!T195 -> 0
A40: COSTS
A42: TOTAL DIRECT COSTS | F42: =SUM(F35:F39) -> 0 | I42: =SUM(I35:I40) -> 0 | J42: =SUM(J35:J40) -> 0 | K42: =SUM(K35:K40) -> 0 | L42: =SUM(L35:L40) -> 0
A45: TOTAL DIRECT COSTS FOR ENTIRE PROPOSED PERIOD | K45: $ | L45: =SUM(F42:L42) -> 0
A47: JUSTIFICATION. Follow the budget justification instructions exactly. Use continuation pages as needed.
A59: PHS 398 (Rev. 06/09) | I59: Page | L59: Form Page 5

Sheet Checklist
G1: Program Director/Principal Investigator (Last, First, Middle): | J1: ='Base Budget'!C33 -> PI name
A2: CHECKLIST
A3: TYPE OF APPLICATION (Check all that apply.)
B4: NEW application. (This application is being submitted to the PHS for the first time.)
B5: RESUBMISSION of application number:
B6: (This application replaces a prior unfunded version of a new, renewal, or revision application.)
B7: RENEWAL of grant number:
B8: (This application is to extend a funded grant beyond its current project period.)
B10: REVISION to grant number:
B11: (This application is for additional funds to supplement a currently funded grant.)
B12: CHANGE of program director/principal investigator.
B13: Name of former program director/principal investigator:
B14: CHANGE of Grantee Institution. Name of former institution:
B15: FOREIGN application | D15: Domestic Grant with foreign involvement | I15: List Country(ies) Involved:
A16: INVENTIONS AND PATENTS (Renewal appl. only) | F16: No | G16: Yes
G17: If "Yes," | I17: Previously reported | O17: Not previously reported
A18: 1. PROGRAM INCOME (See instructions.)
A19: All applications must indicate whether program income is anticipated during the period(s) for which grant support is requested. If program income is
A20: anticipated, use the format below to reflect the amount and source(s).
A21: Budget Period | D21: Anticipated Amount | K21: Source(s)
B22: N/A | E22: N/A | K22: N/A
A26: 2. ASSURANCES/CERTIFICATIONS (See instructions.)
A27: In signing the application Face Page, the authorized organizational representative agrees to comply with the policies, assurances and/or certifications
A28: listed in the application instructions when applicable. Descriptions of individual assurances/certifications are provided in Part III and listed in Part I, 4.1
A29: under item 14. If unable to certify compliance, where applicable, provide an explanation and place it after this page.
A30: 3. FACILITIES AND ADMINISTRATIVE COSTS (F&A)/ INDIRECT COSTS. See specific instructions.
A31: x | B31: DHHS Agreement dated: | E31: 2012-11-27 | J31: No Facilities And Administrative Costs Requested.
B32: DHHS Agreement being negotiated with | K32: Regional Office.
B33: No DHHS Agreement, but rate established with | K33: Date
A35: CALCULATION* (The entire grant application, including the Checklist, will be reproduced and provided to peer reviewers as confidential information.)
A36: a. Initial budget period: | E36: Amount of base $ | F36: =+'Base Budget'!L200 -> 0 | H36: x Rate applied | J36: =+IDC -> 0.5 | L36: % = F&A costs | N36: $ | O36: =ROUND(+F36*J36,0) -> 0
A37: b. 02 year | E37: Amount of base $ | F37: =+'Base Budget'!N200 -> 0 | H37: x Rate applied | J37: =+IDC -> 0.5 | L37: % = F&A costs | N37: $ | O37: =ROUND(+F37*J37,0) -> 0
A38: c. 03 year | E38: Amount of base $ | F38: =+'Base Budget'!P200 -> 0 | H38: x Rate applied | J38: =+IDC -> 0.5 | L38: % = F&A costs | N38: $ | O38: 0
A39: d. 04 year | E39: Amount of base $ | F39: =+'Base Budget'!R200 -> 0 | H39: x Rate applied | J39: =+IDC -> 0.5 | L39: % = F&A costs | N39: $ | O39: 0
A40: e. 05 year | E40: Amount of base $ | F40: =+'Base Budget'!T200 -> 0 | H40: x Rate applied | J40: =+IDC -> 0.5 | L40: % = F&A costs | N40: $ | O40: 0
E41: Enter Rate above as a decimal (e.g., 0.25 for 25%, 0.495 | L41: TOTAL F&A Costs | N41: $ | O41: =SUM(O36:O40) -> 0
A42: *Check appropriate box(es): | E42: for 49.5%
B43: Salary and wages base | E43: X | F43: Modified total direct cost base | K43: Other base (Explain)
B44: Off-site, other special rate, or more than one rate involved (Explain)
A45: Explanation (Attach separate sheet, if necessary.):
A50: 4. DISCLOSURE PERMISSION STATEMENT: If this application does not result in an award, is the Government permitted to disclose the title of
A51: your proposed project, and the name, address, telephone number and e-mail address of the official signing for the applicant organization, to
A52: organizations that may be interested in contacting you for further information (e.g., possible collaborations, investment)? | N52: Yes | O52: No
A53: PHS 398 (Rev. 6/09) | G53: Page | O53: Checklist Form Page

Sheet Tuition
C1: Tuition Costs | K1: Year 1 | M1: Year 2 | O1: Year 3 | Q1: Year 4 | S1: Year 5
K3: Funds Requested | M3: Funds Requested | O3: Funds Requested | Q3: Funds Requested | S3: Funds Requested
A6: 8 | C6: Graduate Student Tuition (most Majors) | G6: select 1/4-time/1/2-time > > | I6: 1/2-time | K6: =ROUND(IF(I6="1/2-time",K7,K8),0) -> 0 | M6: =ROUND(IF(I6="1/2-time",M7,M8),0) -> 0 | O6: =ROUND(IF(I6="1/2-time",O7,O8),0) -> 0 | Q6: =ROUND(IF(I6="1/2-time",Q7,Q8),0) -> 0 | S6: =ROUND(IF(I6="1/2-time",S7,S8),0) -> 0
A7: 8 | C7: Graduate Student Tuition | I7: Maximum | K7: =+C13*VLOOKUP(K13,$I$73:$Q$99,5,FALSE)+C15*VLOOKUP(K15,$I$73:$Q$99,5,FALSE)+C17*VLOOKUP(K17,$I$73:$Q$99,5,FALSE)+C19*VLOOKUP(K19,$I$73:$Q$99,9,FALSE)+C21*VLOOKUP(K21,$I$73:$Q$99,9,FALSE)+C23*VLOOKUP(K23,$I$73:$Q$99,9,FALSE) -> 0 | M7: =+E13*VLOOKUP(M13,$I$73:$Q$99,5,FALSE)+E15*VLOOKUP(M15,$I$73:$Q$99,5,FALSE)+E17*VLOOKUP(M17,$I$73:$Q$99,5,FALSE)+E19*VLOOKUP(M19,$I$73:$Q$99,9,FALSE)+E21*VLOOKUP(M21,$I$73:$Q$99,9,FALSE)+E23*VLOOKUP(M23,$I$73:$Q$99,9,FALSE) -> 0 | O7: =+F13*VLOOKUP(O13,$I$73:$Q$99,5,FALSE)+F15*VLOOKUP(O15,$I$73:$Q$99,5,FALSE)+F17*VLOOKUP(O17,$I$73:$Q$99,5,FALSE)+F19*VLOOKUP(O19,$I$73:$Q$99,9,FALSE)+F21*VLOOKUP(O21,$I$73:$Q$99,9,FALSE)+F23*VLOOKUP(O23,$I$73:$Q$99,9,FALSE) -> 0 | Q7: =+G13*VLOOKUP(Q13,$I$73:$Q$99,5,FALSE)+G15*VLOOKUP(Q15,$I$73:$Q$99,5,FALSE)+G17*VLOOKUP(Q17,$I$73:$Q$99,5,FALSE)+G19*VLOOKUP(Q19,$I$73:$Q$99,9,FALSE)+G21*VLOOKUP(Q21,$I$73:$Q$99,9,FALSE)+G23*VLOOKUP(Q23,$I$73:$Q$99,9,FALSE) -> 0 | S7: =+H13*VLOOKUP(S13,$I$73:$Q$99,5,FALSE)+H15*VLOOKUP(S15,$I$73:$Q$99,5,FALSE)+H17*VLOOKUP(S17,$I$73:$Q$99,5,FALSE)+H19*VLOOKUP(S19,$I$73:$Q$99,9,FALSE)+H21*VLOOKUP(S21,$I$73:$Q$99,9,FALSE)+H23*VLOOKUP(S23,$I$73:$Q$99,9,FALSE) -> 0
A8: 8 | C8: Graduate Student Tuition | I8: Minimum | K8: =+C13*VLOOKUP(K13,$I$73:$Q$99,3,FALSE)+C15*VLOOKUP(K15,$I$73:$Q$99,3,FALSE)+C17*VLOOKUP(K17,$I$73:$Q$99,3,FALSE)+C19*VLOOKUP(K19,$I$73:$Q$99,7,FALSE)+C21*VLOOKUP(K21,$I$73:$Q$99,7,FALSE)+C23*VLOOKUP(K23,$I$73:$Q$99,7,FALSE) -> 0 | M8: =+E13*VLOOKUP(M13,$I$73:$Q$99,3,FALSE)+E15*VLOOKUP(M15,$I$73:$Q$99,3,FALSE)+E17*VLOOKUP(M17,$I$73:$Q$99,3,FALSE)+E19*VLOOKUP(M19,$I$73:$Q$99,7,FALSE)+E21*VLOOKUP(M21,$I$73:$Q$99,7,FALSE)+E23*VLOOKUP(M23,$I$73:$Q$99,7,FALSE) -> 0 | O8: =+F13*VLOOKUP(O13,$I$73:$Q$99,3,FALSE)+F15*VLOOKUP(O15,$I$73:$Q$99,3,FALSE)+F17*VLOOKUP(O17,$I$73:$Q$99,3,FALSE)+F19*VLOOKUP(O19,$I$73:$Q$99,7,FALSE)+F21*VLOOKUP(O21,$I$73:$Q$99,7,FALSE)+F23*VLOOKUP(O23,$I$73:$Q$99,7,FALSE) -> 0 | Q8: =+G13*VLOOKUP(Q13,$I$73:$Q$99,3,FALSE)+G15*VLOOKUP(Q15,$I$73:$Q$99,3,FALSE)+G17*VLOOKUP(Q17,$I$73:$Q$99,3,FALSE)+G19*VLOOKUP(Q19,$I$73:$Q$99,7,FALSE)+G21*VLOOKUP(Q21,$I$73:$Q$99,7,FALSE)+G23*VLOOKUP(Q23,$I$73:$Q$99,7,FALSE) -> 0 | S8: =+H13*VLOOKUP(S13,$I$73:$Q$99,3,FALSE)+H15*VLOOKUP(S15,$I$73:$Q$99,3,FALSE)+H17*VLOOKUP(S17,$I$73:$Q$99,3,FALSE)+H19*VLOOKUP(S19,$I$73:$Q$99,7,FALSE)+H21*VLOOKUP(S21,$I$73:$Q$99,7,FALSE)+H23*VLOOKUP(S23,$I$73:$Q$99,7,FALSE) -> 0
C11: Graduate Student Tuition (most majors)
C12: Year 1 | E12: Year 2 | F12: Year 3 | G12: Year 4 | H12: Year 5
A13: Masters Students (enter no. of students per term) | I13: Summer | K13: Summer 2016 | M13: Summer 2017 | O13: Summer 2018 | Q13: Summer 2019 | S13: Summer 2020
I15: Fall | K15: Fall 2016 | M15: Fall 2017 | O15: Fall 2018 | Q15: Fall 2019 | S15: Fall 2020
E17: 0 | F17: 0 | G17: 0 | H17: 0 | I17: Spring | K17: Spring 2017 | M17: Spring 2018 | O17: Spring 2019 | Q17: Spring 2020 | S17: Spring 2021
A19: PhD Students (enter no. of students per term) | I19: Summer | K19: Summer 2016 | M19: Summer 2017 | O19: Summer 2018 | Q19: Summer 2019 | S19: Summer 2020
I21: Fall | K21: Fall 2016 | M21: Fall 2017 | O21: Fall 2018 | Q21: Fall 2019 | S21: Fall 2020
I23: Spring | K23: Spring 2017 | M23: Spring 2018 | O23: Spring 2019 | Q23: Spring 2020 | S23: Spring 2021
A26: 8 | C26: Graduate Student Tuition (Engineering & Architecture) | G26: select 1/4-time/1/2-time > > | I26: 1/2-time | K26: =ROUND(IF($I$26="1/2-time",K27,K28),0) -> 0 | M26: =ROUND(IF($I$26="1/2-time",M27,M28),0) -> 0 | O26: =ROUND(IF($I$26="1/2-time",O27,O28),0) -> 0 | Q26: =ROUND(IF($I$26="1/2-time",Q27,Q28),0) -> 0 | S26: =ROUND(IF($I$26="1/2-time",S27,S28),0) -> 0
A27: 8 | C27: Graduate Student Tuition | I27: Maximum | K27: =+C33*VLOOKUP(K33,$I$103:$Q$129,5,FALSE)+C35*VLOOKUP(K35,$I$103:$Q$129,5,FALSE)+C37*VLOOKUP(K37,$I$103:$Q$129,5,FALSE)+C39*VLOOKUP(K39,$I$103:$Q$129,9,FALSE)+C41*VLOOKUP(K41,$I$103:$Q$129,9,FALSE)+C43*VLOOKUP(K43,$I$103:$Q$129,9,FALSE) -> 0 | M27: =+E33*VLOOKUP(M33,$I$103:$Q$129,5,FALSE)+E35*VLOOKUP(M35,$I$103:$Q$129,5,FALSE)+E37*VLOOKUP(M37,$I$103:$Q$129,5,FALSE)+E39*VLOOKUP(M39,$I$103:$Q$129,9,FALSE)+E41*VLOOKUP(M41,$I$103:$Q$129,9,FALSE)+E43*VLOOKUP(M43,$I$103:$Q$129,9,FALSE) -> 0 | O27: =+F33*VLOOKUP(O33,$I$103:$Q$129,5,FALSE)+F35*VLOOKUP(O35,$I$103:$Q$129,5,FALSE)+F37*VLOOKUP(O37,$I$103:$Q$129,5,FALSE)+F39*VLOOKUP(O39,$I$103:$Q$129,9,FALSE)+F41*VLOOKUP(O41,$I$103:$Q$129,9,FALSE)+F43*VLOOKUP(O43,$I$103:$Q$129,9,FALSE) -> 0 | Q27: =+G33*VLOOKUP(Q33,$I$103:$Q$129,5,FALSE)+G35*VLOOKUP(Q35,$I$103:$Q$129,5,FALSE)+G37*VLOOKUP(Q37,$I$103:$Q$129,5,FALSE)+G39*VLOOKUP(Q39,$I$103:$Q$129,9,FALSE)+G41*VLOOKUP(Q41,$I$103:$Q$129,9,FALSE)+G43*VLOOKUP(Q43,$I$103:$Q$129,9,FALSE) -> 0 | S27: =+H33*VLOOKUP(S33,$I$103:$Q$129,5,FALSE)+H35*VLOOKUP(S35,$I$103:$Q$129,5,FALSE)+H37*VLOOKUP(S37,$I$103:$Q$129,5,FALSE)+H39*VLOOKUP(S39,$I$103:$Q$129,9,FALSE)+H41*VLOOKUP(S41,$I$103:$Q$129,9,FALSE)+H43*VLOOKUP(S43,$I$103:$Q$129,9,FALSE) -> 0
A28: 8 | C28: Graduate Student Tuition | I28: Minimum | K28: =+C33*VLOOKUP(K33,$I$103:$Q$129,3,FALSE)+C35*VLOOKUP(K35,$I$103:$Q$129,3,FALSE)+C37*VLOOKUP(K37,$I$103:$Q$129,3,FALSE)+C39*VLOOKUP(K39,$I$103:$Q$129,7,FALSE)+C41*VLOOKUP(K41,$I$103:$Q$129,7,FALSE)+C43*VLOOKUP(K43,$I$103:$Q$129,7,FALSE) -> 0 | M28: =+E33*VLOOKUP(M33,$I$103:$Q$129,3,FALSE)+E35*VLOOKUP(M35,$I$103:$Q$129,3,FALSE)+E37*VLOOKUP(M37,$I$103:$Q$129,3,FALSE)+E39*VLOOKUP(M39,$I$103:$Q$129,7,FALSE)+E41*VLOOKUP(M41,$I$103:$Q$129,7,FALSE)+E43*VLOOKUP(M43,$I$103:$Q$129,7,FALSE) -> 0 | O28: =+F33*VLOOKUP(O33,$I$103:$Q$129,3,FALSE)+F35*VLOOKUP(O35,$I$103:$Q$129,3,FALSE)+F37*VLOOKUP(O37,$I$103:$Q$129,3,FALSE)+F39*VLOOKUP(O39,$I$103:$Q$129,7,FALSE)+F41*VLOOKUP(O41,$I$103:$Q$129,7,FALSE)+F43*VLOOKUP(O43,$I$103:$Q$129,7,FALSE) -> 0 | Q28: =+G33*VLOOKUP(Q33,$I$103:$Q$129,3,FALSE)+G35*VLOOKUP(Q35,$I$103:$Q$129,3,FALSE)+G37*VLOOKUP(Q37,$I$103:$Q$129,3,FALSE)+G39*VLOOKUP(Q39,$I$103:$Q$129,7,FALSE)+G41*VLOOKUP(Q41,$I$103:$Q$129,7,FALSE)+G43*VLOOKUP(Q43,$I$103:$Q$129,7,FALSE) -> 0 | S28: =+H33*VLOOKUP(S33,$I$103:$Q$129,3,FALSE)+H35*VLOOKUP(S35,$I$103:$Q$129,3,FALSE)+H37*VLOOKUP(S37,$I$103:$Q$129,3,FALSE)+H39*VLOOKUP(S39,$I$103:$Q$129,7,FALSE)+H41*VLOOKUP(S41,$I$103:$Q$129,7,FALSE)+H43*VLOOKUP(S43,$I$103:$Q$129,7,FALSE) -> 0
C31: Engineering & Architecture Students Only
C32: Year 1 | E32: Year 2 | F32: Year 3 | G32: Year 4 | H32: Year 5
A33: Masters Students (enter no. of students per term) | I33: Summer | K33: Summer 2016 | M33: Summer 2017 | O33: Summer 2018 | Q33: Summer 2019 | S33: Summer 2020
C34: 1
I35: Fall | K35: Fall 2016 | M35: Fall 2017 | O35: Fall 2018 | Q35: Fall 2019 | S35: Fall 2020
I37: Spring | K37: Spring 2017 | M37: Spring 2018 | O37: Spring 2019 | Q37: Spring 2020 | S37: Spring 2021
C38: Year 1 | E38: Year 2 | F38: Year 3 | G38: Year 4 | H38: Year 5
A39: PhD Students (enter no. of students per term) | E39: 0 | F39: 0 | G39: 0 | H39: 0 | I39: Summer | K39: Summer 2016 | M39: Summer 2017 | O39: Summer 2018 | Q39: Summer 2019 | S39: Summer 2020
I41: Fall | K41: Fall 2016 | M41: Fall 2017 | O41: Fall 2018 | Q41: Fall 2019 | S41: Fall 2020
E43: 0 | F43: 0 | G43: 0 | H43: 0 | I43: Spring | K43: Spring 2017 | M43: Spring 2018 | O43: Spring 2019 | Q43: Spring 2020 | S43: Spring 2021
A46: 8 | C46: Graduate Student Tuition (Business & STB) | G46: select 1/4-time/1/2-time > > | I46: 1/2-time | K46: =ROUND(IF($I$46="1/2-time",K47,K48),0) -> 0 | M46: =ROUND(IF($I$46="1/2-time",M47,M48),0) -> 0 | O46: =ROUND(IF($I$46="1/2-time",O47,O48),0) -> 0 | Q46: =ROUND(IF($I$46="1/2-time",Q47,Q48),0) -> 0 | S46: =ROUND(IF($I$46="1/2-time",S47,S48),0) -> 0
A47: 8 | C47: Graduate Student Tuition | I47: Maximum | K47: =+C53*VLOOKUP(K53,$I$133:$Q$159,5,FALSE)+C55*VLOOKUP(K55,$I$133:$Q$159,5,FALSE)+C57*VLOOKUP(K57,$I$133:$Q$159,5,FALSE)+C59*VLOOKUP(K59,$I$133:$Q$159,9,FALSE)+C61*VLOOKUP(K61,$I$133:$Q$159,9,FALSE)+C63*VLOOKUP(K63,$I$133:$Q$159,9,FALSE) -> 0 | M47: =+E53*VLOOKUP(M53,$I$133:$Q$159,5,FALSE)+E55*VLOOKUP(M55,$I$133:$Q$159,5,FALSE)+E57*VLOOKUP(M57,$I$133:$Q$159,5,FALSE)+E59*VLOOKUP(M59,$I$133:$Q$159,9,FALSE)+E61*VLOOKUP(M61,$I$133:$Q$159,9,FALSE)+E63*VLOOKUP(M63,$I$133:$Q$159,9,FALSE) -> 0 | O47: =+F53*VLOOKUP(O53,$I$133:$Q$159,5,FALSE)+F55*VLOOKUP(O55,$I$133:$Q$159,5,FALSE)+F57*VLOOKUP(O57,$I$133:$Q$159,5,FALSE)+F59*VLOOKUP(O59,$I$133:$Q$159,9,FALSE)+F61*VLOOKUP(O61,$I$133:$Q$159,9,FALSE)+F63*VLOOKUP(O63,$I$133:$Q$159,9,FALSE) -> 0 | Q47: =+G53*VLOOKUP(Q53,$I$133:$Q$159,5,FALSE)+G55*VLOOKUP(Q55,$I$133:$Q$159,5,FALSE)+G57*VLOOKUP(Q57,$I$133:$Q$159,5,FALSE)+G59*VLOOKUP(Q59,$I$133:$Q$159,9,FALSE)+G61*VLOOKUP(Q61,$I$133:$Q$159,9,FALSE)+G63*VLOOKUP(Q63,$I$133:$Q$159,9,FALSE) -> 0 | S47: =+H53*VLOOKUP(S53,$I$133:$Q$159,5,FALSE)+H55*VLOOKUP(S55,$I$133:$Q$159,5,FALSE)+H57*VLOOKUP(S57,$I$133:$Q$159,5,FALSE)+H59*VLOOKUP(S59,$I$133:$Q$159,9,FALSE)+H61*VLOOKUP(S61,$I$133:$Q$159,9,FALSE)+H63*VLOOKUP(S63,$I$133:$Q$159,9,FALSE) -> 0
A48: 8 | C48: Graduate Student Tuition | I48: Minimum | K48: =+C53*VLOOKUP(K53,$I$133:$Q$159,3,FALSE)+C55*VLOOKUP(K55,$I$133:$Q$159,3,FALSE)+C57*VLOOKUP(K57,$I$133:$Q$159,3,FALSE)+C59*VLOOKUP(K59,$I$133:$Q$159,7,FALSE)+C61*VLOOKUP(K61,$I$133:$Q$159,7,FALSE)+C63*VLOOKUP(K63,$I$133:$Q$159,7,FALSE) -> 0 | M48: =+E53*VLOOKUP(M53,$I$133:$Q$159,3,FALSE)+E55*VLOOKUP(M55,$I$133:$Q$159,3,FALSE)+E57*VLOOKUP(M57,$I$133:$Q$159,3,FALSE)+E59*VLOOKUP(M59,$I$133:$Q$159,7,FALSE)+E61*VLOOKUP(M61,$I$133:$Q$159,7,FALSE)+E63*VLOOKUP(M63,$I$133:$Q$159,7,FALSE) -> 0 | O48: =+F53*VLOOKUP(O53,$I$133:$Q$159,3,FALSE)+F55*VLOOKUP(O55,$I$133:$Q$159,3,FALSE)+F57*VLOOKUP(O57,$I$133:$Q$159,3,FALSE)+F59*VLOOKUP(O59,$I$133:$Q$159,7,FALSE)+F61*VLOOKUP(O61,$I$133:$Q$159,7,FALSE)+F63*VLOOKUP(O63,$I$133:$Q$159,7,FALSE) -> 0 | Q48: =+G53*VLOOKUP(Q53,$I$133:$Q$159,3,FALSE)+G55*VLOOKUP(Q55,$I$133:$Q$159,3,FALSE)+G57*VLOOKUP(Q57,$I$133:$Q$159,3,FALSE)+G59*VLOOKUP(Q59,$I$133:$Q$159,7,FALSE)+G61*VLOOKUP(Q61,$I$133:$Q$159,7,FALSE)+G63*VLOOKUP(Q63,$I$133:$Q$159,7,FALSE) -> 0 | S48: =+H53*VLOOKUP(S53,$I$133:$Q$159,3,FALSE)+H55*VLOOKUP(S55,$I$133:$Q$159,3,FALSE)+H57*VLOOKUP(S57,$I$133:$Q$159,3,FALSE)+H59*VLOOKUP(S59,$I$133:$Q$159,7,FALSE)+H61*VLOOKUP(S61,$I$133:$Q$159,7,FALSE)+H63*VLOOKUP(S63,$I$133:$Q$159,7,FALSE) -> 0
C51: Business and STB Students Only
C52: Year 1 | E52: Year 2 | F52: Year 3 | G52: Year 4 | H52: Year 5
A53: Masters Students (enter no. of students per term) | I53: Summer | K53: Summer 2016 | M53: Summer 2017 | O53: Summer 2018 | Q53: Summer 2019 | S53: Summer 2020
C54: 1
I55: Fall | K55: Fall 2016 | M55: Fall 2017 | O55: Fall 2018 | Q55: Fall 2019 | S55: Fall 2020
I57: Spring | K57: Spring 2017 | M57: Spring 2018 | O57: Spring 2019 | Q57: Spring 2020 | S57: Spring 2021
C58: Year 1 | E58: Year 2 | F58: Year 3 | G58: Year 4 | H58: Year 5
A59: PhD Students (enter no. of students per term) | I59: Summer | K59: Summer 2016 | M59: Summer 2017 | O59: Summer 2018 | Q59: Summer 2019 | S59: Summer 2020
I61: Fall | K61: Fall 2016 | M61: Fall 2017 | O61: Fall 2018 | Q61: Fall 2019 | S61: Fall 2020
I63: Spring | K63: Spring 2017 | M63: Spring 2018 | O63: Spring 2019 | Q63: Spring 2020 | S63: Spring 2021
K69: Masters - Min | M69: Masters-Max | O69: PhD - Min | Q69: PhD - Max | S69: esc. Rate
S70: 1.042
S71: 1/4-time
S72: 1/2-time
I73: Fall 2016 | K73: =Q73/4 -> 1046.75 | M73: =O73 -> 2093.5 | O73: =Q73/2 -> 2093.5 | Q73: 4187
I74: Fall 2017 | K74: =K73*$S$70 -> 1090.7135 | L74: =L73*$S$70 -> 0 | M74: 2181.427 | N74: 0 | O74: 2181.427 | P74: 0 | Q74: 4362.854
I75: Fall 2018 | K75: =K74*$S$70 -> 1136.523467 | M75: 2273.046934 | O75: 2273.046934 | Q75: 4546.093868
I76: Fall 2019 | K76: 1184.257453 | M76: 2368.514905 | O76: 2368.514905 | Q76: 4737.02981
I77: Fall 2020 | K77: 1233.996266 | M77: 2467.992531 | O77: 2467.992531 | Q77: 4935.985062
I78: Fall 2021 | K78: 1285.824109 | M78: 2571.648218 | O78: 2571.648218 | Q78: 5143.296435
I79: Fall 2022 | K79: 1339.828721 | M79: 2679.657443 | O79: 2679.657443 | Q79: 5359.314885
I80: Fall 2023 | K80: 1396.101528 | M80: 2792.203055 | O80: 2792.203055 | Q80: 5584.406111
I82: Spring 2017 | K82: =Q82/4 -> 1046.75 | M82: =Q82/2 -> 2093.5 | O82: =Q82/2 -> 2093.5 | Q82: 4187
I83: Spring 2018 | K83: =K82*$S$70 -> 1090.7135 | M83: =M82*$S$70 -> 2181.427 | O83: =O82*$S$70 -> 2181.427 | Q83: =Q82*$S$70 -> 4362.854
I84: Spring 2019 | K84: =K83*$S$70 -> 1136.523467 | M84: =M83*$S$70 -> 2273.046934 | O84: =O83*$S$70 -> 2273.046934 | Q84: =Q83*$S$70 -> 4546.093868
I85: Spring 2020 | K85: 1184.257453 | M85: 2368.514905 | O85: 2368.514905 | Q85: 4737.02981
I86: Spring 2021 | K86: 1233.996266 | M86: 2467.992531 | O86: 2467.992531 | Q86: 4935.985062
I87: Spring 2022 | K87: 1285.824109 | M87: 2571.648218 | O87: 2571.648218 | Q87: 5143.296435
I88: Spring 2023 | K88: 1339.828721 | M88: 2679.657443 | O88: 2679.657443 | Q88: 5359.314885
I89: Spring 2024 | K89: 1396.101528 | M89: 2792.203055 | O89: 2792.203055 | Q89: 5584.406111
I91: Summer 2016 | K91: =Q91/4 -> 655.5 | M91: =Q91/2 -> 1311 | O91: =Q91/2 -> 1311 | Q91: 2622
I92: Summer 2017 | K92: =K91*$S$70 -> 683.031 | M92: =M91*$S$70 -> 1366.062 | O92: =O91*$S$70 -> 1366.062 | Q92: =Q91*$S$70 -> 2732.124
I93: Summer 2018 | K93: =K92*$S$70 -> 711.718302 | M93: =M92*$S$70 -> 1423.436604 | O93: =O92*$S$70 -> 1423.436604 | Q93: =Q92*$S$70 -> 2846.873208
I94: Summer 2019 | K94: 741.6104707 | M94: 1483.220941 | O94: 1483.220941 | Q94: 2966.441883
I95: Summer 2020 | K95: 772.7581105 | M95: 1545.516221 | O95: 1545.516221 | Q95: 3091.032442
I96: Summer 2021 | K96: 805.2139511 | M96: 1610.427902 | O96: 1610.427902 | Q96: 3220.855804
I97: Summer 2022 | K97: 839.032937 | M97: 1678.065874 | O97: 1678.065874 | Q97: 3356.131748
I98: Summer 2023 | K98: 874.2723204 | M98: 1748.544641 | O98: 1748.544641 | Q98: 3497.089282
I100: Engineering & Architecture students
K101: Masters - Min | M101: Masters-Max | O101: PhD - Min | Q101: PhD - Max
I103: Fall 2016 | K103: =Q103/4 -> 1171.5 | M103: =O103 -> 2343 | O103: =Q103/2 -> 2343 | Q103: 4686
I104: Fall 2017 | K104: =K103*$S$70 -> 1220.703 | M104: =M103*$S$70 -> 2441.406 | O104: =O103*$S$70 -> 2441.406 | Q104: =Q103*$S$70 -> 4882.812
I105: Fall 2018 | K105: =K104*$S$70 -> 1271.972526 | M105: =M104*$S$70 -> 2543.945052 | O105: =O104*$S$70 -> 2543.945052 | Q105: =Q104*$S$70 -> 5087.890104
I106: Fall 2019 | K106: 1325.395372 | M106: 2650.790744 | O106: 2650.790744 | Q106: 5301.581488
I107: Fall 2020 | K107: 1381.061978 | M107: 2762.123955 | O107: 2762.123955 | Q107: 5524.247911
I108: Fall 2021 | K108: 1439.066581 | M108: 2878.133162 | O108: 2878.133162 | Q108: 5756.266323
I109: Fall 2022 | K109: 1499.507377 | M109: 2999.014754 | O109: 2999.014754 | Q109: 5998.029509
I110: Fall 2023 | K110: 1562.486687 | M110: 3124.973374 | O110: 3124.973374 | Q110: 6249.946748
K111: 0 | O111: 0
I112: Spring 2017 | K112: =Q112/4 -> 1171.5 | M112: =O112 -> 2343 | O112: =Q112/2 -> 2343 | Q112: 4686
I113: Spring 2018 | K113: =K112*$S$70 -> 1220.703 | M113: =M112*$S$70 -> 2441.406 | O113: =O112*$S$70 -> 2441.406 | Q113: =Q112*$S$70 -> 4882.812
I114: Spring 2019 | K114: =K113*$S$70 -> 1271.972526 | M114: =M113*$S$70 -> 2543.945052 | O114: =O113*$S$70 -> 2543.945052 | Q114: =Q113*$S$70 -> 5087.890104
I115: Spring 2020 | K115: 1325.395372 | M115: 2650.790744 | O115: 2650.790744 | Q115: 5301.581488
I116: Spring 2021 | K116: 1381.061978 | M116: 2762.123955 | O116: 2762.123955 | Q116: 5524.247911
I117: Spring 2022 | K117: 1439.066581 | M117: 2878.133162 | O117: 2878.133162 | Q117: 5756.266323
I118: Spring 2023 | K118: 1499.507377 | M118: 2999.014754 | O118: 2999.014754 | Q118: 5998.029509
I119: Spring 2024 | K119: 1562.486687 | M119: 3124.973374 | O119: 3124.973374 | Q119: 6249.946748
K120: 0 | O120: 0
I121: Summer 2016 | K121: =Q121/4 -> 651.25 | M121: =Q121/2 -> 1302.5 | O121: =Q121/2 -> 1302.5 | Q121: 2605
I122: Summer 2017 | K122: =K121*$S$70 -> 678.6025 | M122: =M121*$S$70 -> 1357.205 | O122: =O121*$S$70 -> 1357.205 | Q122: =Q121*$S$70 -> 2714.41
I123: Summer 2018 | K123: =K122*$S$70 -> 707.103805 | M123: =M122*$S$70 -> 1414.20761 | O123: =O122*$S$70 -> 1414.20761 | Q123: =Q122*$S$70 -> 2828.41522
I124: Summer 2019 | K124: 736.8021648 | M124: 1473.60433 | O124: 1473.60433 | Q124: 2947.208659
I125: Summer 2020 | K125: 767.7478557 | M125: 1535.495711 | O125: 1535.495711 | Q125: 3070.991423
I126: Summer 2021 | K126: 799.9932657 | M126: 1599.986531 | O126: 1599.986531 | Q126: 3199.973063
I127: Summer 2022 | K127: 833.5929828 | M127: 1667.185966 | O127: 1667.185966 | Q127: 3334.371931
I128: Summer 2023 | K128: 868.6038881 | M128: 1737.207776 | O128: 1737.207776 | Q128: 3474.415552
I130: Business & STB
K131: Masters - Min | M131: Masters-Max | O131: PhD - Min | Q131: PhD - Max
I133: Fall 2016 | K133: =Q133/4 -> 1233.75 | M133: =Q133/2 -> 2467.5 | O133: =Q133/2 -> 2467.5 | Q133: 4935
I134: Fall 2017 | K134: =K133*$S$70 -> 1285.5675 | M134: =M133*$S$70 -> 2571.135 | O134: =O133*$S$70 -> 2571.135 | Q134: =Q133*$S$70 -> 5142.27
I135: Fall 2018 | K135: =K134*$S$70 -> 1339.561335 | M135: =M134*$S$70 -> 2679.12267 | O135: =O134*$S$70 -> 2679.12267 | Q135: =Q134*$S$70 -> 5358.24534
I136: Fall 2019 | K136: 1395.822911 | M136: 2791.645822 | O136: 2791.645822 | Q136: 5583.291644
I137: Fall 2020 | K137: 1454.447473 | M137: 2908.894947 | O137: 2908.894947 | Q137: 5817.789893
I138: Fall 2021 | K138: 1515.534267 | M138: 3031.068534 | O138: 3031.068534 | Q138: 6062.137069
I139: Fall 2022 | K139: 1579.186706 | M139: 3158.373413 | O139: 3158.373413 | Q139: 6316.746826
I140: Fall 2023 | K140: 1645.512548 | M140: 3291.025096 | O140: 3291.025096 | Q140: 6582.050192
K141: 0 | O141: 0
I142: Spring 2017 | K142: =Q142/4 -> 1233.75 | M142: =Q142/2 -> 2467.5 | O142: =Q142/2 -> 2467.5 | Q142: 4935
I143: Spring 2018 | K143: =K142*$S$70 -> 1285.5675 | M143: =M142*$S$70 -> 2571.135 | O143: =O142*$S$70 -> 2571.135 | Q143: =Q142*$S$70 -> 5142.27
I144: Spring 2019 | K144: =K143*$S$70 -> 1339.561335 | M144: =M143*$S$70 -> 2679.12267 | O144: =O143*$S$70 -> 2679.12267 | Q144: =Q143*$S$70 -> 5358.24534
I145: Spring 2020 | K145: 1395.822911 | M145: 2791.645822 | O145: 2791.645822 | Q145: 5583.291644
I146: Spring 2021 | K146: 1454.447473 | M146: 2908.894947 | O146: 2908.894947 | Q146: 5817.789893
I147: Spring 2022 | K147: 1515.534267 | M147: 3031.068534 | O147: 3031.068534 | Q147: 6062.137069
I148: Spring 2023 | K148: 1579.186706 | M148: 3158.373413 | O148: 3158.373413 | Q148: 6316.746826
I149: Spring 2024 | K149: 1645.512548 | M149: 3291.025096 | O149: 3291.025096 | Q149: 6582.050192
K150: 0 | O150: 0
I151: Summer 2016 | K151: =Q151/4 -> 686.25 | M151: =Q151/2 -> 1372.5 | O151: =Q151/2 -> 1372.5 | Q151: 2745
I152: Summer 2017 | K152: =K151*$S$70 -> 715.0725 | M152: =M151*$S$70 -> 1430.145 | O152: =O151*$S$70 -> 1430.145 | Q152: =Q151*$S$70 -> 2860.29
I153: Summer 2018 | K153: =K152*$S$70 -> 745.105545 | M153: =M152*$S$70 -> 1490.21109 | O153: =O152*$S$70 -> 1490.21109 | Q153: =Q152*$S$70 -> 2980.42218
I154: Summer 2019 | K154: 776.3999779 | M154: 1552.799956 | O154: 1552.799956 | Q154: 3105.599912
I155: Summer 2020 | K155: 809.008777 | M155: 1618.017554 | O155: 1618.017554 | Q155: 3236.035108
I156: Summer 2021 | K156: 842.9871456 | M156: 1685.974291 | O156: 1685.974291 | Q156: 3371.948582
I157: Summer 2022 | K157: 878.3926057 | M157: 1756.785211 | O157: 1756.785211 | Q157: 3513.570423
I158: Summer 2023 | K158: 915.2850951 | M158: 1830.57019 | O158: 1830.57019 | Q158: 3661.140381

Sheet SPA USE ONLY
A1: Sponsor: | B1: NIH
A2: Title:
A3: PI Name:
A4: Period of Performance:
A5: Account Number:
A7: Budget Categories | B7: Budget Code | C7: Amount
A8: Salary/Hourly | B8: 0108 | C8: =ROUND(SUM('Base Budget'!L90:T90),0) -> 0
A9: Payroll Benefits | B9: 0130 | C9: =ROUND(SUM('Base Budget'!L98:T98),0) -> 0
A10: Equipment | B10: 0710 | C10: =ROUND(SUM('Base Budget'!L117:T117),0) -> 0
A11: Travel Domestic | B11: 0215 | C11: =ROUND(SUM('Base Budget'!L156:T156),0) -> 0
A12: Travel Foreign | B12: 0216 | C12: 0
A13: Student Tuition | B13: 0610 | C13: =ROUND(SUM('Base Budget'!L168:T170),0) -> 0
A14: Supplies | B14: 0410 | C14: =ROUND(SUM('Base Budget'!L134:T134),0) -> 0
A15: Subcontracts
A16: Subject to IDC | B16: 0396 | C16: =ROUND('Base Budget'!AF192,0) -> 0
A17: Not Subejct to IDC | B17: 0376 | C17: =ROUND('Base Budget'!AH192,0) -> 0
A18: Other Direct Costs
A19: Telecom Charges | B19: 0340 | C19: 0
A20: Computer Usage | B20: 0353 | C20: 0
A21: Printing/Copying | B21: 0373 | C21: 0
A22: Services/Honoraria | B22: 0302 | C22: =ROUND(SUM('Base Budget'!L108:T108),0) -> 0
A23: Postage | B23: 0379 | C23: 0
A24: Other | B24: 0630 | C24: =ROUND(SUM('Base Budget'!L140:T140)+SUM('Base Budget'!L148:T148)+SUM('Base Budget'!L160:'Base Budget'!T167),0) -> 0
A25: Total Direct Costs | C25: =SUM(C8:C24) -> 0
A26: Indirect Costs | B26: 0642 | C26: =ROUND(SUM('Base Budget'!L201:T201),0) -> 0
A27: Total Costs | C27: =SUM(C25:C26) -> 0
A30: Okay to Upload
A31: 2013-10-10
